[Event "EYCC Open-U12 2019"]
[Site "Bratislava"]
[Date "2019.08.02"]
[Round "1.17"]
[White "Ristic, Luka"]
[Black "Lavrencic, Matic"]
[Result "1-0"]
[ECO "B32"]
[WhiteElo "2113"]
[BlackElo "1564"]
[Annotator "NA"]
[PlyCount "79"]
[EventDate "2019.08.02"]
[EventType "swiss"]
[EventCountry "SVK"]
[SourceTitle "playchess.com"]
[Source "ChessBase"]
[SourceQuality "1"]
[TimeControl "40/5400+30:1800+30"]

1. e4 {[%emt 0:00:00]} c5 {[%emt 0:00:00]} 2. Nf3 {[%emt 0:00:00]} Nc6 {[%emt 0:00:00]} 3. d4 {[%emt 0:00:00]} cxd4 {[%emt 0:00:00]} 4. Nxd4 {[%emt 0:00:00]} e5 {[%emt 0:00:05]} 5. Nb5 {[%emt 0:00:02]} d6 {[%emt 0:00:08]} 6. c4 {[%emt 0:00:52]} Be7 {[%emt 0:00:18]} 7. N1c3 {[%emt 0:00:53]} a6 {[%emt 0:00:10]} 8. Na3 {[%emt 0:00:05]} Nf6 {[%emt 0:00:21]} 9. Be2 {[%emt 0:00:18]} Nd4 {[%emt 0:00:17]} 10. O-O {[%emt 0:01:31]} O-O {[%emt 0:00:10]} 11. Nc2 {[%emt 0:00:17]} Nxe2+ {[%emt 0:00:11]} 12. Qxe2 {[%emt 0:00:07]} Be6 {[%emt 0:00:07]} 13. Ne3 {[%emt 0:03:39]} Rc8 {[%emt 0:00:19]} 14. f3 {[%emt 0:01:45]} Qc7 {[%emt 0:00:46]} 15. b3 {[%emt 0:06:36]} b5 {[%emt 0:03:07]} 16. Ncd5 {[%emt 0:02:37]} Bxd5 {[%emt 0:00:36]} 17. cxd5 {[%emt 0:00:40]} Qa7 {[%emt 0:00:26]} 18. Kh1 {[%emt 0:01:40]} g6 {[%emt 0:00:13]} 19. Ba3 {[%emt 0:01:38]} Rc3 {[%emt 0:00:51]} 20. Nc2 {[%emt 0:01:35]} a5 {[%emt 0:06:02]} 21. Bb2 {[%emt 0:05:16]} Rc5 {[%emt 0:01:56]} 22. f4 {[%emt 0:03:17]} Nd7 {[%emt 0:04:52]} 23. fxe5 {[%emt 0:05:35]} dxe5 {[%emt 0:00:51]} 24. Ne3 {[%emt 0:01:57]} Bd6 {[%emt 0:05:26]} 25. Ba3 {[%emt 0:00:58]} b4 {[%emt 0:00:38]} 26. Bb2 {[%emt 0:00:08]} Nb6 {[%emt 0:00:42]} 27. Ng4 {[%emt 0:00:06]} Nd7 {[%emt 0:02:06]} 28. Qf2 {[%emt 0:02:42]} Qc7 {[%emt 0:01:13]} 29. Rac1 {[%emt 0:02:33]} f6 {[%emt 0:03:41]} 30. Ne3 {[%emt 0:03:35]} Rc8 {[%emt 0:01:58]} 31. Nc4 {[%emt 0:02:45]} Be7 {[%emt 0:02:29]} 32. Rcd1 {[%emt 0:00:13]} Bd8 {[%emt 0:01:57]} 33. Rd3 {[%emt 0:01:13]} Rxc4 {[%emt 0:07:07]} 34. bxc4 {[%emt 0:02:55]} Qxc4 {[%emt 0:00:17]} 35. Qf3 {[%emt 0:02:24]} Qxa2 {[%emt 0:00:49]} 36. Qh3 {[%emt 0:02:00]} Nb6 {[%emt 0:05:07]} 37. Qe6+ {[%emt 0:01:05]} Kg7 {[%emt 0:00:16]} 38. Bxe5 {[%emt 0:00:47]} Qe2 {[%emt 0:02:47]} 39. Bxf6+ {[%emt 0:00:35]} Kf8 {[%emt 0:00:32]} 40. Be7+ {[%emt 0:00:00]} 1-0

[Event "EYCC Open-U12 2019"]
[Site "Bratislava"]
[Date "2019.08.02"]
[Round "1.18"]
[White "Baturina, Marin"]
[Black "Bat, Bilguun"]
[Result "0-1"]
[ECO "E34"]
[WhiteElo "1573"]
[BlackElo "2093"]
[Annotator "NA"]
[PlyCount "110"]
[EventDate "2019.08.02"]
[EventType "swiss"]
[EventCountry "SVK"]
[SourceTitle "playchess.com"]
[Source "ChessBase"]
[SourceQuality "1"]
[TimeControl "40/5400+30:1800+30"]

1. d4 {[%emt 0:00:00]} Nf6 {[%emt 0:00:00]} 2. c4 {[%emt 0:00:00]} e6 {[%emt 0:00:00]} 3. Nc3 {[%emt 0:00:16]} Bb4 {[%emt 0:00:00]} 4. Qc2 {[%emt 0:00:55]} d5 {[%emt 0:00:57]} 5. Bg5 {[%emt 0:01:46]} h6 {[%emt 0:04:28]} 6. Bh4 {[%emt 0:02:32]} g5 {[%emt 0:04:57]} 7. Bg3 {[%emt 0:00:32]} Ne4 {[%emt 0:01:00]} 8. e3 {[%emt 0:05:07]} h5 {[%emt 0:07:22]} 9. f3 {[%emt 0:23:49]} Nxg3 {[%emt 0:20:38]} 10. hxg3 {[%emt 0:00:11]} Nc6 {[%emt 0:04:26]} 11. Be2 {[%emt 0:10:57]} Qf6 {[%emt 0:25:24]} 12. O-O-O {[%emt 0:09:27]} Bxc3 {[%emt 0:05:34]} 13. Qxc3 {[%emt 0:02:36]} Bd7 {[%emt 0:00:23]} 14. Bd3 {[%emt 0:15:41]} O-O-O {[%emt 0:01:46]} 15. Ne2 {[%emt 0:04:52]} h4 {[%emt 0:00:30]} 16. g4 {[%emt 0:04:02]} h3 {[%emt 0:02:45]} 17. Ng1 {[%emt 0:07:00]} hxg2 {[%emt 0:00:45]} 18. Rxh8 {[%emt 0:00:14]} Rxh8 {[%emt 0:00:09]} 19. Qc2 {[%emt 0:00:28]} Rh2 {[%emt 0:01:18]} 20. Qf2 {[%emt 0:00:19]} Qh8 {[%emt 0:03:10]} 21. f4 {[%emt 0:03:29]} gxf4 {[%emt 0:01:20]} 22. Qxf4 {[%emt 0:00:08]} e5 {[%emt 0:05:52]} 23. Qxf7 {[%emt 0:02:01]} exd4 {[%emt 0:02:12]} 24. Bf5 Ne5 {[%emt 0:04:01]} 25. Bxd7+ {[%emt 0:00:40]} Nxd7 {[%emt 0:00:02]} 26. Qxd5 {[%emt 0:00:44]} Qe8 {[%emt 0:01:12]} 27. Qxd4 {[%emt 0:00:50]} c6 {[%emt 0:02:17]} 28. Qxa7 {[%emt 0:03:00]} c5 {[%emt 0:00:53]} 29. Qa8+ {[%emt 0:00:23]} Nb8 {[%emt 0:00:01]} 30. Qa3 {[%emt 0:00:10]} Na6 {[%emt 0:00:39]} 31. Qd3 {[%emt 0:00:32]} Rh1 {[%emt 0:00:49]} 32. Qf5+ {[%emt 0:00:30]} Kb8 {[%emt 0:00:31]} 33. Qg5 {[%emt 0:01:00]} Ka7 {[%emt 0:00:27]} 34. Qf4 {[%emt 0:01:05]} Qa4 {[%emt 0:00:21]} 35. a3 {[%emt 0:01:01]} Qb3 {[%emt 0:00:13]} 36. Qe4 {[%emt 0:00:36]} Rh2 {[%emt 0:00:52]} 37. Qd3 {[%emt 0:00:26]} Qa4 {[%emt 0:00:29]} 38. Qc2 {[%emt 0:00:30]} Qe8 {[%emt 0:00:21]} 39. Qe2 {[%emt 0:00:24]} Qe4 {[%emt 0:00:54]} 40. Rd2 {[%emt 0:00:00]} Qe5 {[%emt 0:00:00]} 41. Qf3 {[%emt 0:13:36]} Qe6 {[%emt 0:07:28]} 42. Qf4 {[%emt 0:04:52]} Rh7 {[%emt 0:05:55]} 43. Qf5 {[%emt 0:09:29]} Qxc4+ {[%emt 0:05:14]} 44. Qc2 {[%emt 0:00:05]} Qf1+ {[%emt 0:01:10]} 45. Rd1 {[%emt 0:00:10]} Rh1 {[%emt 0:00:46]} 46. Ne2 {[%emt 0:01:31]} Qf2 {[%emt 0:01:24]} 47. Ng1 {[%emt 0:00:56]} Qxg1 {[%emt 0:00:40]} 48. Rxg1 {[%emt 0:03:03]} Rxg1+ {[%emt 0:00:11]} 49. Kd2 {[%emt 0:00:07]} Rf1 {[%emt 0:00:26]} 50. Kd3 {[%emt 0:00:37]} g1=Q {[%emt 0:00:11]} 51. b4 {[%emt 0:00:15]} Rd1+ {[%emt 0:00:21]} 52. Ke4 {[%emt 0:00:17]} Qxg4+ {[%emt 0:00:09]} 53. Ke5 {[%emt 0:00:22]} Rd7 {[%emt 0:01:17]} 54. bxc5 {[%emt 0:00:54]} Re7+ {[%emt 0:00:09]} 55. Kd5 {[%emt 0:00:21]} Nc7+ {[%emt 0:00:13]} 0-1

[Event "EYCC Open-U12 2019"]
[Site "Bratislava"]
[Date "2019.08.02"]
[Round "1.19"]
[White "Konyves, Almos"]
[Black "Isaksson, Max"]
[Result "1-0"]
[ECO "D35"]
[WhiteElo "2104"]
[BlackElo "1695"]
[Annotator "NA"]
[PlyCount "75"]
[EventDate "2019.08.02"]
[EventType "swiss"]
[EventCountry "SVK"]
[SourceTitle "playchess.com"]
[Source "ChessBase"]
[SourceQuality "1"]
[TimeControl "40/5400+30:1800+30"]

1. c4 {[%emt 0:00:00]} e6 2. Nc3 {[%emt 0:00:00]} d5 {[%emt 0:00:00]} 3. d4 {[%emt 0:00:00]} Nf6 {[%emt 0:00:00]} 4. cxd5 {[%emt 0:00:00]} exd5 {[%emt 0:00:05]} 5. Bg5 {[%emt 0:00:04]} c6 {[%emt 0:00:19]} 6. e3 {[%emt 0:00:11]} Bd6 {[%emt 0:00:57]} 7. Bd3 {[%emt 0:00:26]} h6 {[%emt 0:00:29]} 8. Bh4 {[%emt 0:00:15]} O-O {[%emt 0:00:09]} 9. Qc2 {[%emt 0:01:03]} Re8 {[%emt 0:01:34]} 10. Nge2 {[%emt 0:00:55]} Nbd7 {[%emt 0:01:03]} 11. O-O {[%emt 0:02:02]} Bxh2+ {[%emt 0:34:25]} 12. Kxh2 {[%emt 0:24:31]} Ng4+ {[%emt 0:01:04]} 13. Kh3 {[%emt 0:00:23]} g5 {[%emt 0:35:48]} 14. Bf5 {[%emt 0:13:26]} Ndf6 {[%emt 0:10:43]} 15. Bg3 {[%emt 0:01:02]} Bd7 {[%emt 0:06:34]} 16. Be5 {[%emt 0:05:52]} Qc8 {[%emt 0:02:03]} 17. Ng3 {[%emt 0:01:00]} Nxe5 {[%emt 0:02:11]} 18. dxe5 {[%emt 0:00:12]} Rxe5 {[%emt 0:00:55]} 19. Bxd7 {[%emt 0:01:18]} Qxd7+ {[%emt 0:00:05]} 20. Kh2 Qg4 21. Kg1 {[%emt 0:03:55]} h5 {[%emt 0:01:35]} 22. Qd1 {[%emt 0:06:09]} Qh4 {[%emt 0:00:21]} 23. Qd4 {[%emt 0:03:17]} Ng4 {[%emt 0:00:36]} 24. Rfe1 {[%emt 0:00:49]} Rae8 {[%emt 0:00:32]} 25. Nce2 {[%emt 0:08:34]} f5 {[%emt 0:00:30]} 26. Qd2 {[%emt 0:10:07]} Qh2+ {[%emt 0:00:29]} 27. Kf1 {[%emt 0:00:00]} Qh4 {[%emt 0:00:27]} 28. Rac1 {[%emt 0:08:32]} Nh2+ {[%emt 0:00:32]} 29. Kg1 {[%emt 0:00:06]} Ng4 {[%emt 0:00:09]} 30. Nd4 {[%emt 0:00:45]} Qh2+ {[%emt 0:00:33]} 31. Kf1 {[%emt 0:00:23]} Nxe3+ {[%emt 0:00:33]} 32. Rxe3 {[%emt 0:00:12]} Rxe3 {[%emt 0:00:17]} 33. Nf3 {[%emt 0:00:09]} Rxf3 {[%emt 0:00:24]} 34. Qxg5+ {[%emt 0:00:06]} Kf8 {[%emt 0:00:18]} 35. gxf3 {[%emt 0:04:03]} Qh3+ {[%emt 0:01:04]} 36. Kg1 {[%emt 0:00:10]} Re7 {[%emt 0:00:41]} 37. Nxf5 {[%emt 0:00:41]} Rf7 {[%emt 0:00:07]} 38. Qd8# {[%emt 0:00:03]} 1-0

[Event "EYCC Open-U12 2019"]
[Site "Bratislava"]
[Date "2019.08.02"]
[Round "1.20"]
[White "Bulej, Matej"]
[Black "Lystsov, Leonid"]
[Result "0-1"]
[ECO "A48"]
[WhiteElo "1664"]
[BlackElo "2086"]
[Annotator "NA"]
[PlyCount "72"]
[EventDate "2019.08.02"]
[EventType "swiss"]
[EventCountry "SVK"]
[SourceTitle "playchess.com"]
[Source "ChessBase"]
[SourceQuality "1"]
[TimeControl "40/5400+30:1800+30"]

1. d4 {[%emt 0:00:00]} Nf6 {[%emt 0:00:00]} 2. Nf3 {[%emt 0:00:00]} g6 {[%emt 0:00:00]} 3. Bg5 {[%emt 0:00:46]} Bg7 {[%emt 0:00:00]} 4. e3 {[%emt 0:00:40]} O-O {[%emt 0:00:08]} 5. Bd3 {[%emt 0:00:50]} c5 {[%emt 0:00:40]} 6. c3 {[%emt 0:01:18]} d6 {[%emt 0:00:20]} 7. Nbd2 {[%emt 0:01:35]} Nc6 {[%emt 0:05:11]} 8. h3 {[%emt 0:01:38]} cxd4 {[%emt 0:03:26]} 9. exd4 {[%emt 0:02:41]} h6 {[%emt 0:01:33]} 10. Bxf6 {[%emt 0:03:10]} Bxf6 {[%emt 0:00:19]} 11. O-O {[%emt 0:01:26]} e5 {[%emt 0:01:12]} 12. dxe5 {[%emt 0:01:33]} dxe5 {[%emt 0:01:12]} 13. Ne4 {[%emt 0:04:45]} Be7 {[%emt 0:21:06]} 14. Bc4 {[%emt 0:07:08]} Qb6 {[%emt 0:11:29]} 15. Qe2 {[%emt 0:06:38]} Kg7 {[%emt 0:03:44]} 16. Ng3 {[%emt 0:06:52]} Bd6 {[%emt 0:06:06]} 17. Rad1 {[%emt 0:05:36]} Bc7 {[%emt 0:01:53]} 18. Qc2 {[%emt 0:07:38]} f5 {[%emt 0:12:06]} 19. Nh1 {[%emt 0:09:17]} e4 {[%emt 0:04:27]} 20. Nd4 {[%emt 0:04:31]} Nxd4 {[%emt 0:00:21]} 21. cxd4 {[%emt 0:03:43]} Bd7 {[%emt 0:04:33]} 22. Qc3 {[%emt 0:04:47]} Rfe8 {[%emt 0:05:34]} 23. Rc1 {[%emt 0:07:29]} Rac8 {[%emt 0:02:43]} 24. Qd2 {[%emt 0:06:57]} g5 {[%emt 0:02:54]} 25. Qe2 {[%emt 0:03:03]} f4 {[%emt 0:05:23]} 26. Qd2 {[%emt 0:04:15]} Qd6 {[%emt 0:02:04]} 27. f3 {[%emt 0:03:08]} exf3 {[%emt 0:02:13]} 28. Rxf3 {[%emt 0:00:43]} Bb6 {[%emt 0:00:33]} 29. Kh2 {[%emt 0:00:43]} Bf5 {[%emt 0:00:43]} 30. d5 {[%emt 0:00:19]} Be3 {[%emt 0:00:34]} 31. Qc3+ {[%emt 0:00:17]} Kg8 {[%emt 0:00:14]} 32. Rd1 {[%emt 0:00:17]} b5 {[%emt 0:00:15]} 33. Bxb5 {[%emt 0:01:11]} Rxc3 {[%emt 0:00:08]} 34. bxc3 {[%emt 0:00:03]} Rb8 {[%emt 0:00:28]} 35. Bc6 {[%emt 0:00:23]} Rb2 {[%emt 0:00:11]} 36. Re1 {[%emt 0:00:28]} Be4 {[%emt 0:00:05]} 0-1

[Event "EYCC Open-U12 2019"]
[Site "Bratislava"]
[Date "2019.08.03"]
[Round "2.1"]
[White "Samadov, Read"]
[Black "Stevik, Patrik"]
[Result "1-0"]
[ECO "E69"]
[WhiteElo "2230"]
[BlackElo "1941"]
[Annotator "NA"]
[PlyCount "57"]
[EventDate "2019.08.02"]
[EventType "swiss"]
[EventCountry "SVK"]
[SourceTitle "playchess.com"]
[Source "ChessBase"]
[SourceQuality "1"]
[TimeControl "40/5400+30:1800+30"]

1. d4 {[%emt 0:00:00]} g6 {[%emt 0:00:00]} 2. c4 {[%emt 0:00:00]} Nf6 {[%emt 0:00:00]} 3. Nf3 {[%emt 0:00:42]} Bg7 {[%emt 0:00:04]} 4. g3 {[%emt 0:00:14]} O-O {[%emt 0:00:32]} 5. Nc3 {[%emt 0:00:18]} d6 {[%emt 0:00:21]} 6. Bg2 {[%emt 0:00:08]} c6 {[%emt 0:01:19]} 7. O-O {[%emt 0:00:32]} Nbd7 {[%emt 0:00:48]} 8. e4 {[%emt 0:03:22]} e5 {[%emt 0:00:51]} 9. h3 {[%emt 0:03:26]} Re8 {[%emt 0:05:06]} 10. Re1 {[%emt 0:01:54]} exd4 {[%emt 0:12:36]} 11. Nxd4 {[%emt 0:00:21]} a5 {[%emt 0:04:52]} 12. Qc2 {[%emt 0:04:39]} Nc5 {[%emt 0:02:22]} 13. Be3 {[%emt 0:02:28]} Qc7 {[%emt 0:21:22]} 14. Rad1 {[%emt 0:05:51]} Rd8 {[%emt 0:25:17]} 15. f4 {[%emt 0:05:30]} Bd7 {[%emt 0:08:27]} 16. Bf2 {[%emt 0:11:21]} Ne8 {[%emt 0:02:36]} 17. Nf3 {[%emt 0:02:28]} b6 {[%emt 0:02:45]} 18. g4 {[%emt 0:08:16]} Be6 {[%emt 0:03:00]} 19. b3 {[%emt 0:01:50]} f6 {[%emt 0:00:28]} 20. f5 {[%emt 0:03:52]} Bf7 {[%emt 0:01:25]} 21. Nd4 {[%emt 0:00:57]} Rac8 {[%emt 0:04:06]} 22. Nxc6 {[%emt 0:03:04]} Qxc6 {[%emt 0:00:02]} 23. e5 {[%emt 0:00:07]} Qd7 {[%emt 0:01:02]} 24. e6 {[%emt 0:00:19]} Nxe6 {[%emt 0:00:07]} 25. fxe6 {[%emt 0:00:04]} Bxe6 {[%emt 0:00:02]} 26. Rxe6 {[%emt 0:00:18]} Kh8 {[%emt 0:02:14]} 27. Rde1 {[%emt 0:00:24]} Qc7 {[%emt 0:01:15]} 28. Re7 {[%emt 0:00:13]} Qb8 {[%emt 0:00:27]} 29. Rb7 {[%emt 0:00:09]} 1-0

[Event "EYCC Open-U12 2019"]
[Site "Bratislava"]
[Date "2019.08.03"]
[Round "2.2"]
[White "Uritsky, Yonathan"]
[Black "Han, Yichen"]
[Result "0-1"]
[ECO "C45"]
[WhiteElo "2040"]
[BlackElo "2217"]
[Annotator "NA"]
[PlyCount "104"]
[EventDate "2019.08.02"]
[EventType "swiss"]
[EventCountry "SVK"]
[SourceTitle "playchess.com"]
[Source "ChessBase"]
[SourceQuality "1"]
[TimeControl "40/5400+30:1800+30"]

1. e4 {[%emt 0:00:00]} e5 {[%emt 0:00:00]} 2. Nf3 {[%emt 0:00:00]} Nc6 {[%emt 0:00:00]} 3. d4 {[%emt 0:00:10]} exd4 {[%emt 0:00:00]} 4. Nxd4 {[%emt 0:00:08]} Bc5 {[%emt 0:00:00]} 5. Nxc6 {[%emt 0:00:27]} Qf6 {[%emt 0:00:21]} 6. Qf3 {[%emt 0:00:14]} bxc6 {[%emt 0:02:23]} 7. Nd2 {[%emt 0:01:05]} Qxf3 {[%emt 0:09:18]} 8. gxf3 {[%emt 0:01:49]} Ne7 {[%emt 0:02:54]} 9. Nb3 {[%emt 0:03:17]} Bb6 {[%emt 0:00:32]} 10. a4 {[%emt 0:01:35]} a5 {[%emt 0:02:02]} 11. Bd2 {[%emt 0:01:54]} d5 {[%emt 0:03:41]} 12. Bc3 {[%emt 0:03:40]} O-O {[%emt 0:01:58]} 13. Bd4 {[%emt 0:07:49]} Ng6 {[%emt 0:12:22]} 14. O-O-O {[%emt 0:04:13]} Be6 {[%emt 0:03:45]} 15. Nc5 {[%emt 0:03:33]} Bxc5 {[%emt 0:02:44]} 16. Bxc5 {[%emt 0:00:05]} Rfe8 {[%emt 0:00:03]} 17. Rg1 {[%emt 0:02:52]} f5 {[%emt 0:05:08]} 18. Bd3 {[%emt 0:03:00]} Nh4 {[%emt 0:05:49]} 19. exf5 {[%emt 0:04:18]} Bxf5 {[%emt 0:00:17]} 20. Bxf5 {[%emt 0:07:22]} Nxf5 {[%emt 0:00:09]} 21. Rd3 {[%emt 0:02:43]} Rad8 {[%emt 0:06:49]} 22. Rgd1 {[%emt 0:03:02]} Re2 {[%emt 0:02:40]} 23. R3d2 {[%emt 0:06:37]} Re5 {[%emt 0:02:44]} 24. c4 {[%emt 0:01:08]} Nh4 {[%emt 0:03:01]} 25. f4 {[%emt 0:01:10]} Re4 {[%emt 0:00:53]} 26. b3 {[%emt 0:01:57]} Rb8 {[%emt 0:03:02]} 27. cxd5 {[%emt 0:05:35]} Rxb3 {[%emt 0:02:38]} 28. Kc2 {[%emt 0:00:21]} Rb8 {[%emt 0:06:31]} 29. Rd4 {[%emt 0:01:21]} Re2+ {[%emt 0:03:13]} 30. R4d2 {[%emt 0:01:05]} Re4 {[%emt 0:00:57]} 31. Rd4 {[%emt 0:00:11]} cxd5 {[%emt 0:05:49]} 32. Rxe4 {[%emt 0:04:15]} dxe4 {[%emt 0:00:06]} 33. Rd7 {[%emt 0:01:19]} Rc8 {[%emt 0:00:38]} 34. Re7 {[%emt 0:00:54]} Nf5 {[%emt 0:02:40]} 35. Rxe4 {[%emt 0:00:32]} Nd6 {[%emt 0:02:21]} 36. Rd4 {[%emt 0:04:24]} Nb7 {[%emt 0:01:42]} 37. Rc4 {[%emt 0:00:58]} Kf7 {[%emt 0:01:04]} 38. Bb6 {[%emt 0:01:12]} c5 {[%emt 0:00:50]} 39. Kd3 {[%emt 0:01:28]} Ke6 {[%emt 0:00:57]} 40. Re4+ {[%emt 0:00:00]} Kd7 {[%emt 0:00:00]} 41. Re1 {[%emt 0:03:44]} Ra8 {[%emt 0:08:44]} 42. Kc4 {[%emt 0:00:39]} Kc6 {[%emt 0:01:20]} 43. Re6+ {[%emt 0:02:10]} Nd6+ {[%emt 0:00:06]} 44. Kc3 {[%emt 0:00:17]} Ra6 {[%emt 0:02:25]} 45. Bd8 {[%emt 0:01:07]} Kd7 {[%emt 0:00:11]} 46. Re7+ {[%emt 0:00:11]} Kxd8 {[%emt 0:00:04]} 47. Rxg7 {[%emt 0:00:11]} Rb6 {[%emt 0:00:39]} 48. Rxh7 {[%emt 0:01:20]} Rb4 {[%emt 0:02:02]} 49. Rh5 {[%emt 0:02:20]} Rxf4 {[%emt 0:00:49]} 50. Kd3 {[%emt 0:00:21]} Rf3+ {[%emt 0:07:19]} 51. Ke2 {[%emt 0:00:19]} Rf5 {[%emt 0:00:38]} 52. Rh6 {[%emt 0:01:01]} Kc7 {[%emt 0:00:17]} 0-1

[Event "EYCC Open-U12 2019"]
[Site "Bratislava"]
[Date "2019.08.03"]
[Round "2.3"]
[White "Strybuk, Artsiom I"]
[Black "Eliseev, Sergey"]
[Result "1-0"]
[ECO "E63"]
[WhiteElo "2193"]
[BlackElo "2053"]
[Annotator "NA"]
[PlyCount "139"]
[EventDate "2019.08.02"]
[EventType "swiss"]
[EventCountry "SVK"]
[SourceTitle "playchess.com"]
[Source "ChessBase"]
[SourceQuality "1"]
[TimeControl "40/5400+30:1800+30"]

1. d4 {[%emt 0:00:00]} Nf6 {[%emt 0:00:00]} 2. c4 {[%emt 0:00:00]} g6 {[%emt 0:00:00]} 3. g3 {[%emt 0:00:00]} Bg7 {[%emt 0:00:00]} 4. Bg2 {[%emt 0:00:00]} O-O {[%emt 0:00:20]} 5. Nf3 {[%emt 0:00:30]} d6 {[%emt 0:00:08]} 6. Nc3 {[%emt 0:00:19]} Nc6 {[%emt 0:00:11]} 7. O-O {[%emt 0:00:31]} a6 {[%emt 0:00:05]} 8. d5 {[%emt 0:08:11]} Na5 {[%emt 0:00:14]} 9. Nd2 {[%emt 0:00:11]} c5 {[%emt 0:00:34]} 10. Qc2 {[%emt 0:01:54]} Bd7 {[%emt 0:08:24]} 11. b3 {[%emt 0:00:52]} b5 {[%emt 0:05:00]} 12. Bb2 {[%emt 0:00:12]} bxc4 {[%emt 0:07:02]} 13. bxc4 {[%emt 0:00:09]} Rb8 {[%emt 0:04:29]} 14. e4 {[%emt 0:05:18]} Ng4 {[%emt 0:04:03]} 15. Rab1 {[%emt 0:15:06]} Bh6 {[%emt 0:23:19]} 16. Ba1 {[%emt 0:12:27]} Bxd2 {[%emt 0:21:09]} 17. Qxd2 {[%emt 0:00:16]} Rxb1 {[%emt 0:00:53]} 18. Nxb1 {[%emt 0:08:24]} Qb6 {[%emt 0:08:25]} 19. Qc3 {[%emt 0:01:11]} f6 {[%emt 0:01:25]} 20. Nd2 {[%emt 0:00:29]} Qb4 {[%emt 0:06:52]} 21. a3 {[%emt 0:02:08]} Qxc3 {[%emt 0:02:01]} 22. Bxc3 {[%emt 0:00:09]} Nxc4 {[%emt 0:03:02]} 23. Nxc4 {[%emt 0:00:14]} Bb5 {[%emt 0:00:04]} 24. Nd2 {[%emt 0:05:45]} Bxf1 {[%emt 0:00:04]} 25. Bxf1 {[%emt 0:00:19]} Ne5 {[%emt 0:02:07]} 26. a4 {[%emt 0:02:20]} c4 {[%emt 0:00:56]} 27. Bxe5 {[%emt 0:01:49]} fxe5 {[%emt 0:00:28]} 28. Bxc4 {[%emt 0:01:22]} Ra8 {[%emt 0:00:15]} 29. f4 {[%emt 0:02:01]} exf4 {[%emt 0:00:28]} 30. gxf4 {[%emt 0:00:07]} Kf7 {[%emt 0:00:31]} 31. Kf2 {[%emt 0:00:39]} Kf6 {[%emt 0:00:35]} 32. Ke3 {[%emt 0:02:08]} g5 {[%emt 0:00:05]} 33. fxg5+ {[%emt 0:01:43]} Kxg5 {[%emt 0:00:06]} 34. Nf3+ {[%emt 0:00:12]} Kg4 {[%emt 0:00:05]} 35. Nd4 {[%emt 0:00:26]} Kh3 {[%emt 0:02:28]} 36. Nc6 {[%emt 0:00:20]} Re8 {[%emt 0:00:16]} 37. Bxa6 {[%emt 0:00:10]} Kxh2 {[%emt 0:00:05]} 38. Be2 {[%emt 0:00:31]} e5 {[%emt 0:01:13]} 39. a5 {[%emt 0:00:30]} Rg8 {[%emt 0:01:22]} 40. a6 {[%emt 0:00:00]} Rg3+ {[%emt 0:00:00]} 41. Bf3 {[%emt 0:02:09]} Rg1 {[%emt 0:01:12]} 42. Ne7 {[%emt 0:05:29]} Ra1 {[%emt 0:03:27]} 43. Be2 {[%emt 0:00:11]} Kg2 {[%emt 0:02:47]} 44. Nf5 {[%emt 0:04:11]} Ra3+ {[%emt 0:02:05]} 45. Bd3 {[%emt 0:07:12]} h5 {[%emt 0:05:31]} 46. Nxd6 {[%emt 0:00:17]} h4 {[%emt 0:07:14]} 47. Nf5 {[%emt 0:01:01]} h3 {[%emt 0:06:50]} 48. Nh4+ {[%emt 0:00:20]} Kg3 {[%emt 0:00:14]} 49. Nf3 {[%emt 0:00:08]} Rb3 {[%emt 0:05:10]} 50. d6 {[%emt 0:01:28]} Rxd3+ {[%emt 0:00:04]} 51. Kxd3 {[%emt 0:00:18]} Kxf3 {[%emt 0:00:01]} 52. a7 {[%emt 0:03:00]} h2 {[%emt 0:00:10]} 53. a8=Q {[%emt 0:00:03]} h1=Q {[%emt 0:00:17]} 54. Qf8+ {[%emt 0:00:51]} Kg2 {[%emt 0:01:42]} 55. Qg7+ {[%emt 0:00:50]} Kf2 {[%emt 0:00:25]} 56. Qf6+ {[%emt 0:01:49]} Kg2 {[%emt 0:00:44]} 57. Qg5+ {[%emt 0:00:13]} Kf3 {[%emt 0:00:45]} 58. Qf5+ {[%emt 0:00:10]} Kg2 {[%emt 0:00:11]} 59. d7 {[%emt 0:04:50]} Qa1 {[%emt 0:00:34]} 60. Qg4+ {[%emt 0:00:29]} Kf2 {[%emt 0:00:05]} 61. Qe2+ {[%emt 0:00:19]} Kg3 {[%emt 0:00:13]} 62. d8=Q {[%emt 0:00:10]} Qa3+ {[%emt 0:00:40]} 63. Kd2 {[%emt 0:00:15]} Qb2+ {[%emt 0:00:54]} 64. Ke1 {[%emt 0:00:23]} Qb4+ {[%emt 0:00:37]} 65. Qdd2 {[%emt 0:00:32]} Qb1+ {[%emt 0:00:07]} 66. Qdd1 {[%emt 0:00:44]} Qb4+ {[%emt 0:00:06]} 67. Kf1 {[%emt 0:00:19]} Qf8+ {[%emt 0:00:13]} 68. Kg1 {[%emt 0:00:31]} Qc5+ {[%emt 0:00:26]} 69. Kh1 {[%emt 0:00:21]} Kh4 {[%emt 0:00:54]} 70. Qg4# {[%emt 0:00:06]} 1-0

[Event "EYCC Open-U12 2019"]
[Site "Bratislava"]
[Date "2019.08.03"]
[Round "2.4"]
[White "Culum, Sanjin"]
[Black "Kvaloy, Aksel Bu"]
[Result "0-1"]
[ECO "B06"]
[WhiteElo "1912"]
[BlackElo "2205"]
[Annotator "NA"]
[PlyCount "84"]
[EventDate "2019.08.02"]
[EventType "swiss"]
[EventCountry "SVK"]
[SourceTitle "playchess.com"]
[Source "ChessBase"]
[SourceQuality "1"]
[TimeControl "40/5400+30:1800+30"]

1. e4 {[%emt 0:00:00]} g6 {[%emt 0:00:00]} 2. d4 {[%emt 0:00:28]} Bg7 {[%emt 0:00:00]} 3. Nf3 {[%emt 0:00:40]} d6 {[%emt 0:00:00]} 4. Nc3 {[%emt 0:01:54]} a6 {[%emt 0:00:20]} 5. a4 {[%emt 0:01:41]} Nf6 {[%emt 0:00:13]} 6. h3 {[%emt 0:01:46]} O-O {[%emt 0:00:41]} 7. Be2 {[%emt 0:02:12]} Nc6 {[%emt 0:01:07]} 8. Be3 {[%emt 0:01:06]} e5 {[%emt 0:02:07]} 9. O-O {[%emt 0:02:19]} exd4 {[%emt 0:04:47]} 10. Nxd4 {[%emt 0:00:14]} Re8 {[%emt 0:00:21]} 11. Nxc6 {[%emt 0:03:58]} bxc6 {[%emt 0:00:01]} 12. Bf3 {[%emt 0:00:26]} Bb7 {[%emt 0:05:23]} 13. Re1 {[%emt 0:05:24]} c5 {[%emt 0:04:54]} 14. Bg5 {[%emt 0:02:23]} h6 {[%emt 0:04:01]} 15. Bh4 {[%emt 0:01:08]} Rb8 {[%emt 0:00:01]} 16. Rb1 {[%emt 0:03:35]} Bc6 {[%emt 0:02:37]} 17. Qd2 {[%emt 0:02:27]} Rb4 {[%emt 0:07:08]} 18. Bxf6 {[%emt 0:06:03]} Qxf6 {[%emt 0:03:29]} 19. e5 {[%emt 0:04:52]} dxe5 {[%emt 0:01:20]} 20. Bxc6 {[%emt 0:00:26]} Qxc6 {[%emt 0:00:17]} 21. Qd5 {[%emt 0:00:12]} Qxd5 {[%emt 0:09:29]} 22. Nxd5 {[%emt 0:00:11]} Rxa4 {[%emt 0:03:59]} 23. Nxc7 {[%emt 0:00:40]} Rc8 {[%emt 0:05:09]} 24. Nd5 {[%emt 0:00:34]} Rb8 {[%emt 0:00:58]} 25. b3 {[%emt 0:06:42]} Ra2 {[%emt 0:07:38]} 26. Re2 {[%emt 0:01:37]} c4 {[%emt 0:06:25]} 27. b4 {[%emt 0:02:45]} Rd8 {[%emt 0:03:44]} 28. Ne7+ {[%emt 0:01:25]} Kf8 {[%emt 0:00:22]} 29. Nc6 {[%emt 0:00:12]} Rd5 {[%emt 0:02:11]} 30. Na5 {[%emt 0:00:41]} c3 {[%emt 0:01:59]} 31. Nc4 {[%emt 0:01:30]} Rd4 {[%emt 0:04:47]} 32. Ne3 {[%emt 0:01:26]} f5 {[%emt 0:03:38]} 33. b5 {[%emt 0:02:53]} Rb2 {[%emt 0:02:14]} 34. Ra1 {[%emt 0:01:13]} axb5 {[%emt 0:00:02]} 35. Nd1 {[%emt 0:00:38]} Ra4 {[%emt 0:03:47]} 36. Rc1 {[%emt 0:00:58]} e4 {[%emt 0:00:27]} 37. Nxb2 {[%emt 0:00:57]} cxb2 {[%emt 0:00:01]} 38. Rb1 {[%emt 0:00:02]} Bc3 {[%emt 0:00:24]} 39. Rxb2 {[%emt 0:05:13]} Bxb2 {[%emt 0:00:03]} 40. c4 {[%emt 0:00:00]} Ra1+ {[%emt 0:00:00]} 41. Kh2 {[%emt 0:00:48]} Be5+ {[%emt 0:00:12]} 42. f4 {[%emt 0:00:10]} exf3+ {[%emt 0:00:48]} 0-1